[Event "Live Chess"]
[Site "Chess.com"]
[Date "2023.05.20"]
[Round "-"]
[White "OSmith06"]
[Black "jusjoel"]
[Result "1-0"]
[WhiteElo "1736"]
[BlackElo "297"]
[TimeControl "300"]
[EndTime "9:48:13 PDT"]
[Termination "OSmith06 won by resignation"]

1. e4 {[%clk 0:04:58.4]} 1... e5 {[%clk 0:04:57.7]} 2. Nf3 {[%clk 0:04:56.8]}
2... Nf6 {[%clk 0:04:51.2]} 3. Nxe5 {[%clk 0:04:55.1]} 3... Nxe4 {[%clk
0:04:46.5]} 4. Qe2 {[%clk 0:04:53.7]} 4... d5 {[%clk 0:04:34.2]} 5. d3 {[%clk
0:04:50.1]} 5... Nf6 {[%clk 0:04:27.8]} 6. Nc6+ {[%clk 0:04:45.3]} 6... Qe7
{[%clk 0:04:17.1]} 7. Nxe7 {[%clk 0:04:43]} 7... Bxe7 {[%clk 0:04:15.1]} 8. Bg5
{[%clk 0:04:37.6]} 8... Be6 {[%clk 0:03:58.6]} 9. Bxf6 {[%clk 0:04:33.4]} 9...
Bxf6 {[%clk 0:03:55.4]} 10. Nc3 {[%clk 0:04:28.4]} 10... Nc6 {[%clk 0:03:49.2]}
11. f4 {[%clk 0:04:24.5]} 11... O-O-O {[%clk 0:03:45.9]} 12. O-O-O {[%clk
0:04:19.7]} 12... d4 {[%clk 0:03:42.6]} 13. Ne4 {[%clk 0:04:17.8]} 13... Be7
{[%clk 0:03:08.5]} 14. g4 {[%clk 0:04:05.5]} 14... f5 {[%clk 0:03:02.9]} 15.
gxf5 {[%clk 0:04:04]} 15... Bxf5 {[%clk 0:02:59.7]} 16. Ng5 {[%clk 0:03:57.4]}
16... Bxg5 {[%clk 0:02:55.2]} 17. fxg5 {[%clk 0:03:57.3]} 17... Rde8 {[%clk
0:02:44.8]} 18. Qf3 {[%clk 0:03:50.6]} 18... Rhf8 {[%clk 0:02:33.3]} 19. Bg2
{[%clk 0:03:43.5]} 19... Re3 {[%clk 0:02:22.9]} 20. Qd5 {[%clk 0:03:37.9]} 20...
g6 {[%clk 0:02:11.9]} 21. Rde1 {[%clk 0:03:33.7]} 21... Rfe8 {[%clk 0:01:59.3]}
22. Rxe3 {[%clk 0:03:30.8]} 22... Rxe3 {[%clk 0:01:56.1]} 23. Qg8+ {[%clk
0:03:27.9]} 23... Kd7 {[%clk 0:01:53.8]} 24. Qxh7+ {[%clk 0:03:23.8]} 24... Ke6
{[%clk 0:01:43.2]} 25. Bxc6 {[%clk 0:03:17.6]} 25... bxc6 {[%clk 0:01:40.5]} 26.
Qxc7 {[%clk 0:03:14.7]} 26... Bg4 {[%clk 0:01:32.4]} 27. Qf4 {[%clk 0:03:08.1]}
27... c5 {[%clk 0:01:11.7]} 28. Qxg4+ {[%clk 0:03:06.5]} 28... Ke5 {[%clk
0:01:06.4]} 29. Rf1 {[%clk 0:03:02]} 1-0

[Event "Live Chess"]
[Site "Chess.com"]
[Date "2023.05.20"]
[Round "-"]
[White "viktorskliarov"]
[Black "WelshTiger"]
[Result "1-0"]
[WhiteElo "2648"]
[BlackElo "2426"]
[TimeControl "300"]
[EndTime "9:48:19 PDT"]
[Termination "viktorskliarov won by resignation"]

1. e4 {[%clk 0:04:57.4]} 1... c5 {[%clk 0:04:53.3]} 2. Nf3 {[%clk 0:04:56.2]}
2... d6 {[%clk 0:04:52.9]} 3. d4 {[%clk 0:04:55.3]} 3... cxd4 {[%clk 0:04:52.8]}
4. Qxd4 {[%clk 0:04:55.2]} 4... a6 {[%clk 0:04:42.7]} 5. Be3 {[%clk 0:04:52.9]}
5... Nf6 {[%clk 0:04:40.5]} 6. Nc3 {[%clk 0:04:51.3]} 6... b5 {[%clk 0:04:35.2]}
7. e5 {[%clk 0:04:33]} 7... Nc6 {[%clk 0:04:33.6]} 8. Qf4 {[%clk 0:04:32.1]}
8... dxe5 {[%clk 0:04:31.9]} 9. Nxe5 {[%clk 0:04:30.8]} 9... Qc7 {[%clk
0:04:21]} 10. Nxc6 {[%clk 0:04:25.4]} 10... Qxc6 {[%clk 0:04:20.6]} 11. Be2
{[%clk 0:04:20.3]} 11... e5 {[%clk 0:03:32.2]} 12. Qxe5+ {[%clk 0:03:39.1]}
12... Qe6 {[%clk 0:03:31.2]} 13. Qxe6+ {[%clk 0:03:34.8]} 13... Bxe6 {[%clk
0:03:30.2]} 14. Bf3 {[%clk 0:03:34.5]} 14... O-O-O {[%clk 0:03:17.5]} 15. a3
{[%clk 0:03:19]} 15... Bd6 {[%clk 0:03:07.4]} 16. h3 {[%clk 0:03:12.3]} 16...
Be5 {[%clk 0:03:06.5]} 17. O-O {[%clk 0:03:03.5]} 17... Bxc3 {[%clk 0:02:59.3]}
18. bxc3 {[%clk 0:03:02.1]} 18... Bc4 {[%clk 0:02:57.4]} 19. Rfe1 {[%clk
0:02:53.2]} 19... Nd5 {[%clk 0:02:56.3]} 20. Bd4 {[%clk 0:02:52.1]} 20... f6
{[%clk 0:02:55.7]} 21. Re6 {[%clk 0:02:36.3]} 21... Nc7 {[%clk 0:02:31.9]} 22.
Re7 {[%clk 0:02:22.3]} 22... Rd7 {[%clk 0:02:30.8]} 23. Bg4 {[%clk 0:02:19.6]}
23... Be6 {[%clk 0:02:30.1]} 24. Bxe6 {[%clk 0:02:17.4]} 1-0

[Event "Live Chess"]
[Site "Chess.com"]
[Date "2023.05.20"]
[Round "-"]
[White "lightningorderyt"]
[Black "Inaffectual"]
[Result "1-0"]
[WhiteElo "535"]
[BlackElo "544"]
[TimeControl "300"]
[EndTime "9:48:33 PDT"]
[Termination "lightningorderyt won on time"]

1. d4 {[%clk 0:04:57.3]} 1... d5 {[%clk 0:04:57.1]} 2. c4 {[%clk 0:04:56.1]}
2... e6 {[%clk 0:04:52.6]} 3. Nc3 {[%clk 0:04:49.7]} 3... Nf6 {[%clk 0:04:29.7]}
4. Bg5 {[%clk 0:04:45.7]} 4... h6 {[%clk 0:04:20]} 5. Bh4 {[%clk 0:04:37.8]}
5... g5 {[%clk 0:04:16.7]} 6. Bg3 {[%clk 0:04:37.1]} 6... dxc4 {[%clk
0:03:54.8]} 7. e4 {[%clk 0:04:34.1]} 7... Bb4 {[%clk 0:03:50.7]} 8. f3 {[%clk
0:04:26.8]} 8... g4 {[%clk 0:03:40.6]} 9. Be5 {[%clk 0:04:21.5]} 9... Nc6 {[%clk
0:03:13.1]} 10. Qa4 {[%clk 0:03:55.8]} 10... O-O {[%clk 0:03:04.7]} 11. d5
{[%clk 0:03:46.1]} 11... exd5 {[%clk 0:03:01.6]} 12. O-O-O {[%clk 0:03:43.6]}
12... Nxe5 {[%clk 0:02:46.5]} 13. Qxb4 {[%clk 0:03:39.8]} 13... Nd3+ {[%clk
0:02:35.8]} 14. Bxd3 {[%clk 0:03:36]} 14... cxd3 {[%clk 0:02:30.7]} 15. Rxd3
{[%clk 0:03:34.7]} 15... Be6 {[%clk 0:02:16.8]} 16. Nge2 {[%clk 0:03:25.5]}
16... a5 {[%clk 0:02:04.4]} 17. Qxb7 {[%clk 0:03:04.9]} 17... Bc8 {[%clk
0:01:39.8]} 18. Qb3 {[%clk 0:02:53.6]} 18... Ba6 {[%clk 0:01:36.2]} 19. Rd2
{[%clk 0:02:40.1]} 19... gxf3 {[%clk 0:01:30.7]} 20. gxf3 {[%clk 0:02:30]} 20...
c6 {[%clk 0:01:22.1]} 21. exd5 {[%clk 0:02:09.8]} 21... cxd5 {[%clk 0:01:15]}
22. Nxd5 {[%clk 0:02:06.3]} 22... Nxd5 {[%clk 0:01:13.4]} 23. Rxd5 {[%clk
0:02:00.3]} 23... Rc8+ {[%clk 0:01:11.6]} 24. Kd1 {[%clk 0:01:57]} 24... Bxe2+
{[%clk 0:00:59.9]} 25. Kxe2 {[%clk 0:01:48.4]} 25... Re8+ {[%clk 0:00:57.8]} 26.
Kf2 {[%clk 0:01:47]} 26... Rc2+ {[%clk 0:00:53.2]} 27. Qxc2 {[%clk 0:01:30.5]}
27... Qxd5 {[%clk 0:00:50.3]} 28. Rd1 {[%clk 0:01:27.3]} 28... Qxa2 {[%clk
0:00:26.1]} 29. Rb1 {[%clk 0:01:10.1]} 29... Qd5 {[%clk 0:00:19.4]} 30. Qc3
{[%clk 0:00:53.8]} 30... Qe6 {[%clk 0:00:14.9]} 31. Re1 {[%clk 0:00:39.3]} 31...
Qxe1+ {[%clk 0:00:12.4]} 32. Qxe1 {[%clk 0:00:36]} 32... Rxe1 {[%clk 0:00:10.7]}
33. Kxe1 {[%clk 0:00:35.4]} 33... Kg7 {[%clk 0:00:08]} 34. Kd2 {[%clk
0:00:35.3]} 34... Kf6 {[%clk 0:00:06.8]} 35. Kc3 {[%clk 0:00:35.2]} 35... Ke5
{[%clk 0:00:05.8]} 36. b3 {[%clk 0:00:35.1]} 36... Kd5 {[%clk 0:00:04.2]} 37. b4
{[%clk 0:00:29.6]} 37... axb4+ {[%clk 0:00:02.5]} 38. Kxb4 {[%clk 0:00:28.7]}
38... f5 {[%clk 0:00:01.3]} 39. Kc3 {[%clk 0:00:28]} 1-0

[Event "Live Chess"]
[Site "Chess.com"]
[Date "2023.05.20"]
[Round "-"]
[White "ranvir123"]
[Black "akp42"]
[Result "0-1"]
[WhiteElo "855"]
[BlackElo "1956"]
[TimeControl "300"]
[EndTime "9:48:33 PDT"]
[Termination "akp42 won by checkmate"]

1. e4 {[%clk 0:04:58.5]} 1... e6 {[%clk 0:04:59]} 2. d4 {[%clk 0:04:56.3]} 2...
d5 {[%clk 0:04:58.5]} 3. e5 {[%clk 0:04:55.3]} 3... c5 {[%clk 0:04:56.9]} 4. Nf3
{[%clk 0:04:54.9]} 4... cxd4 {[%clk 0:04:53.3]} 5. Nxd4 {[%clk 0:04:50.3]} 5...
Nc6 {[%clk 0:04:52.3]} 6. Nxc6 {[%clk 0:04:48.9]} 6... bxc6 {[%clk 0:04:51]} 7.
Qd3 {[%clk 0:04:47.2]} 7... a5 {[%clk 0:04:45.7]} 8. Nc3 {[%clk 0:04:46.1]} 8...
Ba6 {[%clk 0:04:44.3]} 9. Qf3 {[%clk 0:04:40.9]} 9... Bxf1 {[%clk 0:04:42.7]}
10. Rxf1 {[%clk 0:04:40.4]} 10... Bb4 {[%clk 0:04:30.8]} 11. Bd2 {[%clk
0:04:33.1]} 11... Ne7 {[%clk 0:04:17.8]} 12. a3 {[%clk 0:04:31.2]} 12... Bxc3
{[%clk 0:04:15.4]} 13. Bxc3 {[%clk 0:04:29.3]} 13... O-O {[%clk 0:04:14.2]} 14.
O-O-O {[%clk 0:04:28.1]} 14... Qb6 {[%clk 0:04:10]} 15. Kb1 {[%clk 0:04:25.7]}
15... Rfb8 {[%clk 0:04:04.5]} 16. Qf4 {[%clk 0:04:10.9]} 16... c5 {[%clk
0:04:01.1]} 17. Qh4 {[%clk 0:04:06.3]} 17... Nf5 {[%clk 0:03:56.5]} 18. Qh3
{[%clk 0:03:59.6]} 18... d4 {[%clk 0:03:54.9]} 19. Kc1 {[%clk 0:03:51.1]} 19...
dxc3 {[%clk 0:03:51.7]} 20. bxc3 {[%clk 0:03:49.5]} 20... Qb2+ {[%clk
0:03:47.1]} 21. Kd2 {[%clk 0:03:48.4]} 21... Rd8+ {[%clk 0:03:45.4]} 22. Ke2
{[%clk 0:03:47.2]} 22... Qxc2+ {[%clk 0:03:43.4]} 23. Kf3 {[%clk 0:03:45.1]}
23... Qxc3+ {[%clk 0:03:41]} 24. Kg4 {[%clk 0:03:19.9]} 24... Qc4+ {[%clk
0:03:15.9]} 25. Kg5 {[%clk 0:03:17]} 25... h6+ {[%clk 0:03:11.6]} 26. Kh5 {[%clk
0:03:15.9]} 26... g6# {[%clk 0:03:08.4]} 0-1

[Event "Live Chess"]
[Site "Chess.com"]
[Date "2023.05.20"]
[Round "-"]
[White "NAZRIZ1977"]
[Black "ZackirtyChess"]
[Result "1-0"]
[WhiteElo "2115"]
[BlackElo "1150"]
[TimeControl "300"]
[EndTime "9:48:35 PDT"]
[Termination "NAZRIZ1977 won by resignation"]

1. c4 {[%clk 0:04:57.8]} 1... f5 {[%clk 0:04:56.5]} 2. g3 {[%clk 0:04:56.9]}
2... Nf6 {[%clk 0:04:55.6]} 3. Bg2 {[%clk 0:04:56.4]} 3... g6 {[%clk 0:04:54.9]}
4. Nf3 {[%clk 0:04:55.7]} 4... Bg7 {[%clk 0:04:54.3]} 5. O-O {[%clk 0:04:55.2]}
5... O-O {[%clk 0:04:54.2]} 6. Nc3 {[%clk 0:04:54.6]} 6... Nc6 {[%clk
0:04:50.8]} 7. d3 {[%clk 0:04:52.5]} 7... d6 {[%clk 0:04:50.3]} 8. Rb1 {[%clk
0:04:50.9]} 8... e5 {[%clk 0:04:49.7]} 9. Bg5 {[%clk 0:04:50.3]} 9... h6 {[%clk
0:04:44.4]} 10. Bxf6 {[%clk 0:04:49.2]} 10... Qxf6 {[%clk 0:04:44.3]} 11. b4
{[%clk 0:04:47.4]} 11... a6 {[%clk 0:04:36.9]} 12. a4 {[%clk 0:04:45.6]} 12...
Na7 {[%clk 0:04:32.3]} 13. b5 {[%clk 0:04:44.4]} 13... Bd7 {[%clk 0:04:26.9]}
14. Nd5 {[%clk 0:04:41.2]} 14... Qd8 {[%clk 0:04:17.7]} 15. Nxc7 {[%clk
0:04:26.5]} 15... Qxc7 {[%clk 0:04:06]} 16. b6 {[%clk 0:04:23.7]} 16... Qc8
{[%clk 0:03:59.3]} 17. bxa7 {[%clk 0:04:22.3]} 17... Bxa4 {[%clk 0:03:56.8]} 18.
Qxa4 {[%clk 0:04:20.6]} 18... Rxa7 {[%clk 0:03:53.5]} 19. Qb4 {[%clk 0:04:18.7]}
19... a5 {[%clk 0:03:50.5]} 20. Qxd6 {[%clk 0:04:16.3]} 20... Rd8 {[%clk
0:03:41.4]} 21. Qxg6 {[%clk 0:04:13.8]} 1-0

[Event "Live Chess"]
[Site "Chess.com"]
[Date "2023.05.20"]
[Round "-"]
[White "lucaskk818"]
[Black "bristolunichess"]
[Result "0-1"]
[WhiteElo "1878"]
[BlackElo "1870"]
[TimeControl "300"]
[EndTime "9:48:36 PDT"]
[Termination "bristolunichess won by resignation"]

1. d4 {[%clk 0:04:59.1]} 1... Nf6 {[%clk 0:04:57.6]} 2. c4 {[%clk 0:04:58.6]}
2... g6 {[%clk 0:04:54.7]} 3. Nc3 {[%clk 0:04:56.7]} 3... Bg7 {[%clk 0:04:52.5]}
4. e4 {[%clk 0:04:56.2]} 4... O-O {[%clk 0:04:51.4]} 5. h3 {[%clk 0:04:55.8]}
5... d6 {[%clk 0:04:49.7]} 6. Be3 {[%clk 0:04:55.2]} 6... Nbd7 {[%clk 0:04:38]}
7. g4 {[%clk 0:04:52.6]} 7... c5 {[%clk 0:04:31.2]} 8. d5 {[%clk 0:04:50.1]}
8... e6 {[%clk 0:04:26.8]} 9. g5 {[%clk 0:04:37.5]} 9... Ne8 {[%clk 0:04:13.9]}
10. h4 {[%clk 0:04:36.5]} 10... exd5 {[%clk 0:04:09]} 11. cxd5 {[%clk
0:04:34.3]} 11... f5 {[%clk 0:04:04.1]} 12. h5 {[%clk 0:04:21.2]} 12... f4
{[%clk 0:03:49.5]} 13. Bxf4 {[%clk 0:03:21.4]} 13... Rxf4 {[%clk 0:03:45.5]} 14.
hxg6 {[%clk 0:03:20.8]} 14... Bxc3+ {[%clk 0:03:34]} 15. bxc3 {[%clk 0:03:18.9]}
15... Rxe4+ {[%clk 0:03:31.8]} 16. Ne2 {[%clk 0:02:57]} 16... hxg6 {[%clk
0:03:22.8]} 17. Qd3 {[%clk 0:02:45.8]} 17... Qe7 {[%clk 0:03:09.3]} 18. Bg2
{[%clk 0:02:37.1]} 18... Rxe2+ {[%clk 0:02:57.2]} 19. Qxe2 {[%clk 0:02:37]}
19... Qxe2+ {[%clk 0:02:52.7]} 20. Kxe2 {[%clk 0:02:36.9]} 20... Ne5 {[%clk
0:02:44.4]} 21. Be4 {[%clk 0:02:27.3]} 21... Bf5 {[%clk 0:02:31.2]} 22. Bxf5
{[%clk 0:02:25.3]} 22... gxf5 {[%clk 0:02:30.3]} 23. f4 {[%clk 0:02:24.5]} 23...
Ng4 {[%clk 0:02:27.8]} 24. Rab1 {[%clk 0:02:09.8]} 24... b6 {[%clk 0:02:26.3]}
25. Kd2 {[%clk 0:02:04.1]} 25... Ng7 {[%clk 0:02:18.7]} 26. Rbe1 {[%clk
0:01:58.2]} 26... Re8 {[%clk 0:02:16.8]} 27. Rxe8+ {[%clk 0:01:56.7]} 27... Nxe8
{[%clk 0:02:15.9]} 28. Re1 {[%clk 0:01:56.2]} 28... Kf7 {[%clk 0:02:15.2]} 29.
Re6 {[%clk 0:01:51.4]} 29... Nf2 {[%clk 0:01:58.2]} 30. Rh6 {[%clk 0:01:43.1]}
30... Ne4+ {[%clk 0:01:50.9]} 31. Kd3 {[%clk 0:01:38.2]} 31... Ng7 {[%clk
0:01:47.9]} 32. Kc4 {[%clk 0:01:22.8]} 32... a6 {[%clk 0:01:43.3]} 33. Kb3
{[%clk 0:01:18.1]} 33... b5 {[%clk 0:01:39]} 34. a4 {[%clk 0:01:09.9]} 34...
Nd2+ {[%clk 0:01:20.2]} 35. Kc2 {[%clk 0:01:01.3]} 35... Nc4 {[%clk 0:01:19.4]}
36. axb5 {[%clk 0:00:55.5]} 36... axb5 {[%clk 0:01:18.3]} 37. Rf6+ {[%clk
0:00:53.3]} 37... Ke7 {[%clk 0:01:13.5]} 38. Rg6 {[%clk 0:00:51.5]} 38... Kf7
{[%clk 0:01:12.5]} 39. Rf6+ {[%clk 0:00:50.5]} 39... Kg8 {[%clk 0:01:08.7]} 40.
g6 {[%clk 0:00:43.1]} 40... Ne3+ {[%clk 0:01:02.6]} 41. Kb2 {[%clk 0:00:39.2]}
41... Nxd5 {[%clk 0:00:57.8]} 42. Rxd6 {[%clk 0:00:37]} 42... Nxf4 {[%clk
0:00:56.8]} 43. Rd8+ {[%clk 0:00:35.5]} 43... Ne8 {[%clk 0:00:52.6]} 44. Rxe8+
{[%clk 0:00:35.4]} 44... Kg7 {[%clk 0:00:52.2]} 45. Rc8 {[%clk 0:00:30.4]} 45...
Kxg6 {[%clk 0:00:48.2]} 46. Rxc5 {[%clk 0:00:29.3]} 46... Nd3+ {[%clk
0:00:47.4]} 47. Kb3 {[%clk 0:00:27]} 47... Nxc5+ {[%clk 0:00:47]} 48. Kb4 {[%clk
0:00:26.9]} 48... Ne4 {[%clk 0:00:44.3]} 49. Kxb5 {[%clk 0:00:23.8]} 49... Nxc3+
{[%clk 0:00:43.6]} 50. Kc4 {[%clk 0:00:23.7]} 50... Ne4 {[%clk 0:00:43.2]} 51.
Kd3 {[%clk 0:00:23.5]} 51... Kg5 {[%clk 0:00:43]} 52. Ke3 {[%clk 0:00:23.3]}
52... Kg4 {[%clk 0:00:42.5]} 53. Ke2 {[%clk 0:00:22.3]} 53... Kg3 {[%clk
0:00:42.1]} 54. Kf1 {[%clk 0:00:22.2]} 54... Kf3 {[%clk 0:00:41]} 55. Ke1 {[%clk
0:00:21.5]} 55... Ng3 {[%clk 0:00:39.8]} 56. Kd2 {[%clk 0:00:19.9]} 56... f4
{[%clk 0:00:38.7]} 57. Kd3 {[%clk 0:00:19.8]} 57... Kg2 {[%clk 0:00:37.5]} 58.
Kd4 {[%clk 0:00:19.7]} 58... f3 {[%clk 0:00:37.3]} 59. Ke5 {[%clk 0:00:19.6]}
59... f2 {[%clk 0:00:37.1]} 60. Ke6 {[%clk 0:00:18.5]} 60... f1=Q {[%clk
0:00:36.3]} 61. Kd7 {[%clk 0:00:18.4]} 61... Qf6 {[%clk 0:00:34.5]} 0-1

[Event "Live Chess"]
[Site "Chess.com"]
[Date "2023.05.20"]
[Round "-"]
[White "defenderalist"]
[Black "Ra2orLeaf"]
[Result "1-0"]
[WhiteElo "1592"]
[BlackElo "1147"]
[TimeControl "300"]
[EndTime "9:48:41 PDT"]
[Termination "defenderalist won on time"]

1. e4 {[%clk 0:04:58.8]} 1... c5 {[%clk 0:04:58.9]} 2. Nf3 {[%clk 0:04:58.3]}
2... Nc6 {[%clk 0:04:57.9]} 3. d4 {[%clk 0:04:57.4]} 3... cxd4 {[%clk
0:04:56.6]} 4. Nxd4 {[%clk 0:04:57]} 4... Qc7 {[%clk 0:04:54.6]} 5. Nxc6 {[%clk
0:04:56.4]} 5... Qxc6 {[%clk 0:04:54.5]} 6. Nc3 {[%clk 0:04:55.5]} 6... e6
{[%clk 0:04:53.9]} 7. Bd3 {[%clk 0:04:55]} 7... Bb4 {[%clk 0:04:52.5]} 8. Bd2
{[%clk 0:04:52.8]} 8... Ne7 {[%clk 0:04:43.3]} 9. O-O {[%clk 0:04:51.6]} 9...
O-O {[%clk 0:04:41.9]} 10. a3 {[%clk 0:04:49.4]} 10... Bd6 {[%clk 0:04:38.7]}
11. f4 {[%clk 0:04:44.4]} 11... Bc7 {[%clk 0:04:29.4]} 12. Kh1 {[%clk
0:04:41.9]} 12... d5 {[%clk 0:04:27.7]} 13. exd5 {[%clk 0:04:39.9]} 13... exd5
{[%clk 0:04:27.6]} 14. Qh5 {[%clk 0:04:32.1]} 14... h6 {[%clk 0:04:15.9]} 15. f5
{[%clk 0:04:26.8]} 15... Be5 {[%clk 0:03:33.1]} 16. Ne2 {[%clk 0:03:42.1]} 16...
Bxb2 {[%clk 0:03:15.5]} 17. c3 {[%clk 0:03:39.4]} 17... d4 {[%clk 0:03:09.1]}
18. Rab1 {[%clk 0:03:33.9]} 18... dxc3 {[%clk 0:03:07.7]} 19. f6 {[%clk
0:03:14.6]} 19... Ng6 {[%clk 0:01:54.6]} 20. Bxh6 {[%clk 0:02:10]} 20... c2
{[%clk 0:00:52.1]} 21. Rxb2 {[%clk 0:01:54.8]} 21... gxh6 {[%clk 0:00:13.9]} 22.
Qxh6 {[%clk 0:01:43]} 22... Qxf6 {[%clk 0:00:09.3]} 23. Rxf6 {[%clk 0:01:39.3]}
23... Rd8 {[%clk 0:00:06.9]} 24. Bxc2 {[%clk 0:01:26.3]} 24... Rd2 {[%clk
0:00:04.9]} 25. Bxg6 {[%clk 0:01:21.6]} 1-0

[Event "Live Chess"]
[Site "Chess.com"]
[Date "2023.05.20"]
[Round "-"]
[White "SupremeTactician"]
[Black "Jio85"]
[Result "1-0"]
[WhiteElo "2408"]
[BlackElo "2024"]
[TimeControl "300"]
[EndTime "9:48:54 PDT"]
[Termination "SupremeTactician won by resignation"]

1. e4 {[%clk 0:04:59.8]} 1... Nf6 {[%clk 0:04:58.1]} 2. e5 {[%clk 0:04:58.8]}
2... Nd5 {[%clk 0:04:57.4]} 3. d4 {[%clk 0:04:58.7]} 3... d6 {[%clk 0:04:54.8]}
4. Nf3 {[%clk 0:04:58.4]} 4... g6 {[%clk 0:04:54.2]} 5. c4 {[%clk 0:04:56]} 5...
Nb6 {[%clk 0:04:53.5]} 6. Nc3 {[%clk 0:04:55.5]} 6... Bg7 {[%clk 0:04:52.7]} 7.
Be3 {[%clk 0:04:55.1]} 7... Nc6 {[%clk 0:04:52]} 8. exd6 {[%clk 0:04:53.4]} 8...
cxd6 {[%clk 0:04:51.1]} 9. Be2 {[%clk 0:04:52.6]} 9... O-O {[%clk 0:04:50.2]}
10. O-O {[%clk 0:04:51.8]} 10... Bg4 {[%clk 0:04:49.4]} 11. b3 {[%clk
0:04:50.7]} 11... Nd7 {[%clk 0:04:46.2]} 12. Rc1 {[%clk 0:04:49.6]} 12... f5
{[%clk 0:04:43.7]} 13. h3 {[%clk 0:04:46.1]} 13... Bxf3 {[%clk 0:04:43]} 14.
Bxf3 {[%clk 0:04:44.2]} 14... e5 {[%clk 0:04:42.7]} 15. Bd5+ {[%clk 0:04:40.1]}
15... Kh8 {[%clk 0:04:41]} 16. Bxc6 {[%clk 0:04:36.5]} 16... bxc6 {[%clk
0:04:39]} 17. dxe5 {[%clk 0:04:36.2]} 17... dxe5 {[%clk 0:04:38.3]} 18. f4
{[%clk 0:04:22.9]} 18... e4 {[%clk 0:04:35.8]} 19. Na4 {[%clk 0:04:12.1]} 19...
Qe7 {[%clk 0:04:25.7]} 20. Qe2 {[%clk 0:04:05.8]} 20... Rfd8 {[%clk 0:04:19.3]}
21. Rfd1 {[%clk 0:04:03.3]} 21... Bf6 {[%clk 0:04:13.5]} 22. Rd2 {[%clk
0:03:25.3]} 22... c5 {[%clk 0:03:45.1]} 23. Rcd1 {[%clk 0:03:13.6]} 23... Rac8
{[%clk 0:03:42.6]} 24. Nxc5 {[%clk 0:02:56.3]} 24... Nxc5 {[%clk 0:03:39]} 25.
Rxd8+ {[%clk 0:02:55.3]} 25... Rxd8 {[%clk 0:03:38.1]} 26. Rxd8+ {[%clk
0:02:55.1]} 26... Qxd8 {[%clk 0:03:35.8]} 27. Bxc5 {[%clk 0:02:54.8]} 27... Bd4+
{[%clk 0:03:32.7]} 28. Bxd4+ {[%clk 0:02:52.5]} 28... Qxd4+ {[%clk 0:03:32.6]}
29. Kh2 {[%clk 0:02:51.2]} 29... Qd3 {[%clk 0:03:28.9]} 30. Qb2+ {[%clk
0:02:47.9]} 30... Kg8 {[%clk 0:03:26.9]} 31. c5 {[%clk 0:02:17.2]} 31... e3
{[%clk 0:03:00.5]} 32. c6 {[%clk 0:02:11.4]} 32... Qd6 {[%clk 0:02:59.2]} 33.
Qe5 {[%clk 0:01:59.9]} 33... Qxe5 {[%clk 0:02:43.6]} 34. fxe5 {[%clk 0:01:59]}
34... e2 {[%clk 0:02:43.3]} 35. c7 {[%clk 0:01:58]} 35... e1=Q {[%clk
0:02:43.2]} 36. c8=Q+ {[%clk 0:01:57.6]} 36... Kf7 {[%clk 0:02:41.8]} 37. Qd7+
{[%clk 0:01:54.6]} 37... Kf8 {[%clk 0:02:37.4]} 38. Qd6+ {[%clk 0:01:47]} 38...
Kf7 {[%clk 0:02:33]} 39. Qd5+ {[%clk 0:01:45.5]} 39... Ke7 {[%clk 0:02:30.1]}
40. Qc5+ {[%clk 0:01:44.8]} 40... Kf7 {[%clk 0:02:27.1]} 41. Qxa7+ {[%clk
0:01:43.3]} 41... Ke6 {[%clk 0:02:26.1]} 42. Qd4 {[%clk 0:01:28.6]} 1-0

[Event "Live Chess"]
[Site "Chess.com"]
[Date "2023.05.20"]
[Round "-"]
[White "JamesWallman"]
[Black "RoaringKnights"]
[Result "0-1"]
[WhiteElo "781"]
[BlackElo "943"]
[TimeControl "300"]
[EndTime "9:49:03 PDT"]
[Termination "RoaringKnights won on time"]

1. e4 {[%clk 0:04:57.3]} 1... c6 {[%clk 0:04:57.6]} 2. d4 {[%clk 0:04:54.7]}
2... d5 {[%clk 0:04:56.1]} 3. e5 {[%clk 0:04:52.3]} 3... Bf5 {[%clk 0:04:54.5]}
4. Nf3 {[%clk 0:04:47.3]} 4... e6 {[%clk 0:04:53.2]} 5. Nc3 {[%clk 0:04:43.5]}
5... Bb4 {[%clk 0:04:48]} 6. Bd2 {[%clk 0:04:40.5]} 6... Nd7 {[%clk 0:04:35.7]}
7. Be2 {[%clk 0:04:37.3]} 7... Bxc3 {[%clk 0:04:30.8]} 8. Bxc3 {[%clk
0:04:34.4]} 8... Qb6 {[%clk 0:04:25.9]} 9. b3 {[%clk 0:04:22.6]} 9... c5 {[%clk
0:04:24.2]} 10. O-O {[%clk 0:04:16.7]} 10... cxd4 {[%clk 0:04:17.8]} 11. Bxd4
{[%clk 0:04:12.1]} 11... Qb4 {[%clk 0:04:04.4]} 12. c3 {[%clk 0:04:02.6]} 12...
Qe7 {[%clk 0:03:57.4]} 13. h3 {[%clk 0:03:55]} 13... Nc5 {[%clk 0:03:49.2]} 14.
g4 {[%clk 0:03:48.6]} 14... Bg6 {[%clk 0:03:42.6]} 15. h4 {[%clk 0:03:42.1]}
15... h5 {[%clk 0:03:39.9]} 16. g5 {[%clk 0:03:37.3]} 16... f6 {[%clk
0:03:33.5]} 17. exf6 {[%clk 0:03:28.4]} 17... gxf6 {[%clk 0:03:32]} 18. gxf6
{[%clk 0:03:22.9]} 18... Nxf6 {[%clk 0:03:30]} 19. Bb5+ {[%clk 0:03:10.3]} 19...
Ncd7 {[%clk 0:03:19.2]} 20. Bxd7+ {[%clk 0:03:06.3]} 20... Kxd7 {[%clk
0:03:17.3]} 21. Ne5+ {[%clk 0:02:59.5]} 21... Ke8 {[%clk 0:03:04.5]} 22. Nxg6
{[%clk 0:02:56.5]} 22... Rg8 {[%clk 0:03:03.2]} 23. Qd3 {[%clk 0:02:39.7]} 23...
Ne4 {[%clk 0:02:48.7]} 24. Qb5+ {[%clk 0:02:20.9]} 24... Qd7 {[%clk 0:02:44.6]}
25. Qxd7+ {[%clk 0:02:15.3]} 25... Kxd7 {[%clk 0:02:42.7]} 26. Kh1 {[%clk
0:01:58.4]} 26... Rxg6 {[%clk 0:02:40.7]} 27. Rg1 {[%clk 0:01:42.9]} 27... Rg4
{[%clk 0:02:35.4]} 28. Rxg4 {[%clk 0:01:39.5]} 28... hxg4 {[%clk 0:02:34.3]} 29.
Rg1 {[%clk 0:01:33.3]} 29... Rg8 {[%clk 0:02:30.1]} 30. f3 {[%clk 0:01:29.2]}
30... Nd6 {[%clk 0:01:58.2]} 31. fxg4 {[%clk 0:01:27]} 31... Ke7 {[%clk
0:01:53.1]} 32. g5 {[%clk 0:01:23.1]} 32... Nf5 {[%clk 0:01:45.2]} 33. Bf6+
{[%clk 0:01:18.5]} 33... Kf7 {[%clk 0:01:39.8]} 34. Rg4 {[%clk 0:01:10.1]} 34...
Rg6 {[%clk 0:01:13.5]} 35. h5 {[%clk 0:01:06.1]} 35... Rg8 {[%clk 0:01:10.5]}
36. Rb4 {[%clk 0:00:58]} 36... Nd6 {[%clk 0:00:55.8]} 37. a4 {[%clk 0:00:53.5]}
37... a5 {[%clk 0:00:51.1]} 38. Rh4 {[%clk 0:00:43.9]} 38... Nf5 {[%clk
0:00:45.6]} 39. Rh3 {[%clk 0:00:36.5]} 39... Ne7 {[%clk 0:00:21.6]} 40. h6
{[%clk 0:00:31.3]} 40... Rc8 {[%clk 0:00:10.6]} 41. h7 {[%clk 0:00:28.7]} 41...
Ng6 {[%clk 0:00:07.7]} 42. b4 {[%clk 0:00:21.1]} 42... Rb8 {[%clk 0:00:04.1]}
43. bxa5 {[%clk 0:00:18.6]} 43... Rc8 {[%clk 0:00:02.8]} 44. Rd3 {[%clk
0:00:07.7]} 44... Rb8 {[%clk 0:00:01.8]} 45. Rh3 {[%clk 0:00:03.9]} 45... Rc8
{[%clk 0:00:01.3]} 0-1